bitfinex-derivatives/quotes_BTCF0:USTF0_20241003
["timestamp","ask_amount","ask_price","bid_price","bid_amount"]
[1727937199372,0.0652,61353.0,61350.0,0.3618]
[1727937199662,0.0652,61353.0,61350.0,0.3628]
[1727937200167,0.0652,61353.0,61350.0,0.3618]
[1727937200364,0.0652,61353.0,61350.0,0.3628]
[1727937200769,0.0652,61353.0,61350.0,0.3618]
[1727937201271,0.03148551,61352.0,61350.0,0.001]
[1727937201473,0.03148551,61351.0,61350.0,0.001]
[1727937202462,0.03148551,61351.0,61349.0,0.3608]
[1727937202661,0.0652,61353.0,61350.0,0.001]
[1727937202860,0.03148511,61352.0,61350.0,0.001]
[1727937203065,0.03148511,61351.0,61350.0,0.001]
[1727937203280,0.03148511,61352.0,61350.0,0.001]
[1727937204771,0.03148511,61352.0,61349.0,0.3608]
[1727937204978,0.03148511,61352.0,61350.0,0.001]
[1727937205866,0.03148511,61352.0,61349.0,0.3618]
[1727937206264,0.07140021,61352.0,61349.0,0.3618]
[1727937206675,0.07140021,61352.0,61350.0,0.001]
[1727937208478,0.07140021,61352.0,61349.0,0.3618]
[1727937208668,0.03148511,61352.0,61351.0,0.09]
[1727937208863,0.03148484,61352.0,61351.0,0.09]
[1727937209277,0.0652,61353.0,61351.0,0.09]
[1727937209673,0.0652,61353.0,61350.0,0.001]
[1727937209873,0.1224,61354.0,61350.0,0.001]
[1727937210072,0.09,61351.0,61350.0,0.001]
[1727937210476,1.179,61351.0,61350.0,0.001]
[1727937210675,0.065201,61352.0,61350.0,0.001]
[1727937210872,0.4832,61354.0,61350.0,0.091]
[1727937210873,0.00180001,61354.0,61350.0,0.091]
[1727937211077,0.0938,61359.0,61353.0,0.09]
[1727937211078,0.065195,61357.0,61353.0,0.09]
[1727937212177,0.065195,61357.0,61353.0,0.091]
[1727937216887,0.065195,61357.0,61353.0,0.11251615]
[1727937218192,0.065195,61357.0,61353.0,0.11151615]
[1727937218388,0.065195,61357.0,61353.0,0.11251615]
[1727937219692,0.03148383,61356.0,61353.0,0.11251615]
[1727937219894,0.065195,61357.0,61353.0,0.11251615]
[1727937220500,0.065205,61348.0,61347.0,0.0038]
[1727937220794,0.155205,61348.0,61340.0,0.02520574]
[1727937221001,0.09,61344.0,61340.0,0.02140574]
[1727937221188,0.09,61344.0,61339.0,0.04878011]
[1727937221385,0.09,61344.0,61338.0,0.09]
[1727937221386,0.09,61344.0,61338.0,0.13878011]
[1727937221587,0.065205,61348.0,61342.0,0.09]
[1727937221588,0.065206,61347.0,61342.0,0.09]
[1727937221996,0.09,61345.0,61340.0,0.065212]
[1727937224107,0.091,61345.0,61340.0,0.065212]
[1727937224402,0.03148987,61344.0,61342.0,0.007]
[1727937224592,0.03148987,61343.0,61342.0,0.007]
[1727937224992,0.03148987,61343.0,61340.0,0.065212]
[1727937225196,0.03148987,61342.0,61340.0,0.074212]
[1727937225394,0.03148987,61341.0,61340.0,0.074212]
[1727937225594,0.03148987,61341.0,61340.0,0.065212]
[1727937225897,0.03148987,61344.0,61340.0,0.065212]
[1727937227405,0.03148987,61344.0,61340.0,0.074212]
[1727937227799,0.03148987,61344.0,61340.0,0.065212]
[1727937227999,0.03148987,61344.0,61340.0,0.074212]
[1727937228504,0.09,61341.0,61340.0,0.009]
[1727937228704,0.03148987,61341.0,61340.0,0.009]
[1727937228902,0.155209,61344.0,61340.0,0.009]
[1727937229097,0.0314899,61343.0,61340.0,0.009]
[1727937229298,0.0314899,61342.0,61340.0,0.009]
[1727937229502,0.155209,61344.0,61340.0,0.009]
[1727937229699,0.03149028,61343.0,61342.0,0.09]
[1727937229899,0.159003,61350.0,61342.0,0.15521]
[1727937230099,0.03148892,61349.0,61346.0,0.09]
[1727937230305,0.03148892,61348.0,61346.0,0.09]
[1727937230505,0.03148892,61347.0,61346.0,0.09]
[1727937230709,0.0038,61354.0,61346.0,0.09]
[1727937230900,0.03148482,61353.0,61347.0,0.0955]
[1727937231206,0.065198,61355.0,61354.0,0.09]
[1727937231906,0.065198,61355.0,61352.0,0.09]
[1727937233199,0.065199,61354.0,61349.0,0.02172256]
[1727937233408,0.065199,61354.0,61347.0,0.0975]
[1727937233608,0.09,61353.0,61347.0,0.0955]
[1727937234210,0.09,61353.0,61349.0,0.003]
[1727937234409,0.09,61353.0,61349.0,0.004]
[1727937234813,0.09,61353.0,61349.0,0.001]
[1727937234814,0.09,61350.0,61349.0,0.001]
[1727937235010,0.065199,61353.0,61347.0,0.21021194]
[1727937235011,0.09,61352.0,61347.0,0.21021194]
[1727937235209,0.09,61352.0,61347.0,0.21121194]
[1727937235417,0.09,61352.0,61347.0,0.20821194]
[1727937235609,0.09,61352.0,61349.0,0.001]
[1727937236231,0.09,61352.0,61350.0,0.3608]
[1727937236714,0.065199,61353.0,61351.0,0.09]
[1727937236907,0.09,61358.0,61351.0,0.09]
[1727937237108,0.155194,61358.0,61351.0,0.09]
[1727937237317,0.155194,61358.0,61354.0,0.09]
[1727937237715,0.155194,61358.0,61352.0,0.09]
[1727937238516,0.155194,61358.0,61354.0,0.001]
[1727937238937,0.065195,61357.0,61354.0,0.001]
[1727937239113,0.09,61355.0,61354.0,0.001]
[1727937239516,0.16139843,61355.0,61354.0,0.001]
[1727937240117,0.16139843,61355.0,61352.0,0.001]
[1727937240313,0.03148443,61354.0,61352.0,0.001]
[1727937241019,0.03148342,61353.0,61350.0,0.3608]
[1727937241333,0.03148342,61352.0,61350.0,0.3608]
[1727937241523,0.03148342,61351.0,61350.0,0.3608]
[1727937242415,0.03148342,61354.0,61350.0,0.3608]
[1727937242617,0.03148342,61354.0,61353.0,0.3608]
[1727937244639,0.03148342,61354.0,61353.0,0.3618]
[1727937245029,0.03148342,61354.0,61353.0,0.001]
[1727937245422,0.03148337,61354.0,61353.0,0.3618]
[1727937246233,0.0038,61360.0,61356.0,0.065195]
[1727937246529,0.14668804,61363.0,61359.0,0.09]
[1727937247029,0.06763224,61365.0,61359.0,0.09]
[1727937247230,0.00244524,61365.0,61359.0,0.09]
[1727937247529,0.09,61363.0,61359.0,0.09]
[1727937248033,0.065188,61364.0,61359.0,0.091]
[1727937248323,0.065188,61364.0,61361.0,0.3608]
[1727937249933,0.09,61363.0,61361.0,0.3608]
[1727937250321,0.09,61363.0,61361.0,0.3618]
[1727937250726,0.09,61363.0,61361.0,0.3628]
[1727937251526,0.065188,61364.0,61361.0,0.3628]
[1727937252821,0.065188,61364.0,61361.0,0.3618]
[1727937253016,0.065188,61364.0,61361.0,0.3628]
[1727937253422,0.065188,61364.0,61361.0,0.3618]
[1727937253623,0.065188,61364.0,61361.0,0.3628]
[1727937254519,0.03157632,61363.0,61361.0,0.002]
[1727937254720,0.03157632,61362.0,61361.0,0.002]
[1727937256127,0.03157632,61362.0,61361.0,0.001]
[1727937256320,0.03157632,61362.0,61361.0,0.002]
[1727937259622,0.03160524,61362.0,61361.0,0.002]
[1727937261636,0.065188,61364.0,61361.0,0.002]
[1727937266430,0.155189,61363.0,61361.0,0.002]
[1727937267431,0.155189,61363.0,61361.0,0.001]
[1727937267633,0.155189,61363.0,61361.0,0.002]
[1727937272334,0.03155832,61362.0,61361.0,0.002]
[1727937276733,0.14668804,61362.0,61361.0,0.002]
[1727937277041,0.18659773,61362.0,61361.0,0.002]
[1727937277236,0.14668804,61362.0,61361.0,0.002]
[1727937277562,0.26818014,61362.0,61361.0,0.002]
[1727937278835,0.26820144,61362.0,61361.0,0.002]
[1727937284760,0.065189,61363.0,61361.0,0.002]
[1727937285843,0.065189,61363.0,61361.0,0.001]
[1727937286050,0.065189,61363.0,61361.0,0.002]
[1727937290556,0.0315875,61362.0,61361.0,0.002]
[1727937290856,0.38243414,61367.0,61361.0,0.002]
[1727937291057,0.03167619,61366.0,61361.0,0.002]
[1727937291255,0.03167619,61365.0,61361.0,0.002]
[1727937291458,0.38243414,61367.0,61361.0,0.002]
[1727937291459,0.03167619,61364.0,61361.0,0.002]
[1727937291750,0.14668804,61362.0,61361.0,0.002]
[1727937291953,0.2182698,61362.0,61361.0,0.002]
[1727937292147,0.14668804,61362.0,61361.0,0.002]
[1727937294843,0.14668804,61362.0,61361.0,0.001]
[1727937295048,0.14668804,61362.0,61361.0,0.002]
[1727937298057,0.1216043,61362.0,61361.0,0.002]
[1727937298447,0.07158176,61362.0,61361.0,0.067191]
[1727937298654,0.03167331,61362.0,61361.0,0.067191]
[1727937299255,0.1304344,61373.0,61369.0,0.065182]
[1727937299458,0.03205426,61370.0,61369.0,0.065182]
[1727937299649,0.03200675,61370.0,61369.0,0.065182]
[1727937299852,0.1621344,61375.0,61369.0,0.065182]
[1727937300155,0.1304344,61375.0,61372.0,0.09]
[1727937300359,0.1304344,61375.0,61369.0,0.001]
[1727937300565,0.00244491,61376.0,61373.0,0.065178]
[1727937300566,0.0319493,61374.0,61373.0,0.065178]
[1727937301154,0.0319493,61374.0,61373.0,0.155178]
[1727937301351,0.0319493,61374.0,61373.0,0.065178]
[1727937302053,0.00244491,61376.0,61373.0,0.066178]
[1727937302357,0.03202974,61375.0,61373.0,0.066178]
[1727937302547,0.00244491,61376.0,61373.0,0.066178]
[1727937302752,0.0320208,61375.0,61374.0,0.09]
[1727937303686,0.00244491,61376.0,61374.0,0.09]
[1727937304048,0.00244491,61376.0,61374.0,0.643977]
[1727937304752,0.00244491,61376.0,61374.0,0.66588148]
[1727937304955,0.00244491,61376.0,61374.0,0.66688148]
[1727937306162,0.0038,61383.0,61381.0,0.065169]
[1727937306359,0.3608,61388.0,61382.0,0.09]
[1727937306569,0.3608,61388.0,61386.0,0.09]
[1727937306570,0.38159196,61388.0,61386.0,0.09]
[1727937307860,0.44675496,61388.0,61386.0,0.09]
[1727937308065,0.44675496,61388.0,61386.0,0.091]
[1727937308255,0.065163,61388.0,61386.0,0.4518]
[1727937308860,0.0038,61393.0,61386.0,0.4518]
[1727937309162,0.4508,61394.0,61390.0,0.09]
[1727937309461,0.47217789,61394.0,61390.0,0.09]
[1727937309868,0.065158,61392.0,61390.0,0.09]
[1727937310869,0.065158,61392.0,61390.0,0.091]
[1727937311169,0.065158,61392.0,61390.0,0.092]
[1727937314768,0.21184604,61392.0,61390.0,0.092]
[1727937314971,0.07244018,61391.0,61390.0,0.05603128]
[1727937315167,0.12244212,61391.0,61390.0,0.05603128]
[1727937315674,0.12244212,61391.0,61390.0,0.002]
[1727937315675,0.21244218,61391.0,61390.0,0.002]
[1727937315872,0.065167,61383.0,61382.0,0.0076]
[1727937316062,0.06517,61381.0,61380.0,0.3608]
[1727937316262,0.13761018,61381.0,61380.0,0.3608]
[1727937317967,0.13761018,61381.0,61380.0,0.3618]
[1727937318471,0.13861018,61381.0,61380.0,0.3628]
[1727937318874,0.17151018,61381.0,61380.0,0.3628]
[1727937319171,0.17151018,61381.0,61380.0,0.002]
[1727937319172,0.49241836,61381.0,61380.0,0.002]
[1727937319480,0.58232811,61381.0,61380.0,0.002]
[1727937320570,0.59143588,61381.0,61380.0,0.002]
[1727937320773,0.58132837,61381.0,61380.0,0.002]
[1727937321463,0.76044493,61381.0,61380.0,0.002]
[1727937321663,0.69223239,61381.0,61380.0,0.002]
[1727937321970,0.60230997,61381.0,61380.0,0.002]
[1727937324273,0.065175,61376.0,61375.0,0.0076]
[1727937324487,0.065179,61372.0,61371.0,0.0076]
[1727937324781,0.06518,61371.0,61368.0,0.00244364]
[1727937325073,0.09,61369.0,61368.0,0.00244364]
[1727937325280,0.06518,61371.0,61368.0,0.00244364]
[1727937327081,0.06618,61371.0,61368.0,0.00344364]
[1727937327784,0.003,61369.0,61368.0,0.00444364]
[1727937328470,0.06918,61371.0,61368.0,0.00444364]
[1727937328674,0.06818,61371.0,61368.0,0.00344364]
[1727937328870,0.06718,61371.0,61368.0,0.00344364]
[1727937329069,0.003,61369.0,61368.0,0.00444364]
[1727937329770,0.03463204,61369.0,61368.0,0.00444364]
[1727937330477,0.03363204,61369.0,61368.0,0.00344364]
[1727937330690,0.03363204,61369.0,61368.0,0.00444364]
[1727937331182,0.03563204,61369.0,61368.0,0.00444364]
[1727937333085,0.004,61369.0,61368.0,0.13444364]
[1727937333282,0.0038,61376.0,61368.0,1.22328364]
[1727937333586,0.0038,61380.0,61376.0,0.065174]
[1727937333780,0.00244442,61382.0,61380.0,0.13]
[1727937334684,0.00244442,61382.0,61377.0,0.291274]
[1727937334685,0.002,61380.0,61377.0,0.291274]
[1727937334890,0.002,61380.0,61377.0,0.0312]
[1727937335274,0.06517,61381.0,61380.0,0.001]
[1727937335477,0.09728452,61381.0,61380.0,0.001]
[1727937335878,0.03211452,61381.0,61380.0,0.131]
[1727937336385,0.00444442,61382.0,61380.0,0.131]
[1727937336788,0.00244442,61382.0,61380.0,0.131]
[1727937337489,0.00244442,61382.0,61380.0,0.132]
[1727937337873,0.00244442,61382.0,61380.0,0.002]
[1727937343986,0.03217448,61381.0,61380.0,0.002]
[1727937344983,0.03217448,61381.0,61380.0,0.131]
[1727937345179,0.03217448,61381.0,61380.0,0.132]
[1727937347077,0.03217448,61381.0,61380.0,0.002]
[1727937350292,0.00244442,61382.0,61380.0,0.002]
[1727937351482,0.07208792,61381.0,61380.0,0.001]
[1727937351783,0.07208792,61381.0,61380.0,0.002]
[1727937351988,0.0236466,61382.0,61380.0,0.002]
[1727937352578,0.0888156,61382.0,61380.0,0.002]
[1727937352782,0.0329,61381.0,61380.0,0.002]
[1727937353388,0.0329,61381.0,61380.0,0.001]
[1727937353585,0.0329,61381.0,61380.0,0.002]
[1727937365597,0.1229,61381.0,61380.0,0.002]
[1727937366887,0.15493629,61381.0,61380.0,0.002]
[1727937368093,0.24484997,61381.0,61380.0,0.002]
[1727937368490,0.39142095,61381.0,61380.0,0.002]
[1727937368994,0.39142095,61381.0,61372.0,0.0038]
[1727937368995,0.065178,61374.0,61372.0,0.0038]
[1727937369203,0.065179,61372.0,61370.0,0.3608]
[1727937369498,0.07186336,61371.0,61370.0,0.3608]
[1727937370397,0.03196116,61371.0,61370.0,0.3608]
[1727937370602,0.03196116,61371.0,61370.0,0.3618]
[1727937371196,0.03196116,61371.0,61370.0,0.3628]
[1727937371899,0.03196116,61371.0,61370.0,0.002]
[1727937373920,0.065179,61372.0,61370.0,0.002]
[1727937375813,0.066179,61372.0,61370.0,0.002]
[1727937376312,0.067179,61372.0,61370.0,0.002]
[1727937376804,0.066179,61372.0,61370.0,0.001]
[1727937377005,0.067179,61372.0,61370.0,0.002]
[1727937377402,0.0324,61371.0,61370.0,0.001]
[1727937377613,0.0324,61371.0,61370.0,0.002]
[1727937377803,0.0324,61371.0,61370.0,0.001]
[1727937378006,0.0958,61371.0,61370.0,0.002]
[1727937379504,0.0958,61371.0,61370.0,0.001]
[1727937379702,0.0968,61371.0,61370.0,0.002]
[1727937380104,0.0978,61371.0,61370.0,0.002]
[1727937382009,0.25919112,61371.0,61370.0,0.002]
[1727937382511,0.21928099,61371.0,61370.0,0.002]
[1727937382708,0.25919064,61371.0,61370.0,0.002]
[1727937384109,0.03348099,61371.0,61370.0,0.092]
[1727937384305,0.002,61371.0,61370.0,0.092]
[1727937385605,0.001,61371.0,61370.0,0.091]
[1727937385807,0.002,61371.0,61370.0,0.092]
[1727937389516,0.002,61371.0,61370.0,0.4528]
[1727937389710,0.0038,61381.0,61375.0,0.065176]
[1727937389911,0.02168932,61383.0,61379.0,0.09]
[1727937390211,0.3608,61384.0,61382.0,0.09]
[1727937390411,0.3608,61384.0,61380.0,0.09]
[1727937391024,0.002,61381.0,61380.0,0.09]
[1727937391612,0.002,61381.0,61380.0,0.4508]
[1727937392207,0.001,61381.0,61380.0,0.4508]
[1727937392613,0.065166,61385.0,61380.0,0.4508]
[1727937392812,0.065166,61385.0,61383.0,0.09]
[1727937393914,0.065166,61385.0,61383.0,0.091]
[1727937394322,0.065166,61385.0,61383.0,0.092]
[1727937395310,0.0038,61392.0,61383.0,0.092]
[1727937395311,0.09,61390.0,61383.0,0.092]
[1727937395519,0.09,61390.0,61386.0,0.09]
[1727937396625,0.09,61390.0,61386.0,0.091]
[1727937397514,0.09,61390.0,61386.0,0.092]
[1727937397822,0.42775901,61391.0,61386.0,0.092]
[1727937398015,0.425959,61391.0,61386.0,0.092]
[1727937398911,0.09,61390.0,61386.0,0.092]
[1727937399110,0.09,61390.0,61386.0,0.11354081]
[1727937399320,0.42787901,61391.0,61386.0,0.092]
[1727937399527,0.425959,61391.0,61386.0,0.092]
[1727937400114,0.065159,61391.0,61386.0,0.092]
[1727937403719,0.09,61390.0,61386.0,0.092]
[1727937407529,0.03245027,61389.0,61386.0,0.092]
[1727937407732,0.09,61390.0,61386.0,0.092]
[1727937408025,0.03243881,61389.0,61386.0,0.092]
[1727937408223,0.09,61390.0,61386.0,0.092]
[1727937408423,0.0324587,61389.0,61386.0,0.092]
[1727937408625,0.09,61390.0,61386.0,0.092]
[1727937408927,0.03245595,61389.0,61386.0,0.092]
[1727937409229,0.09,61390.0,61386.0,0.092]
[1727937409430,0.03246273,61389.0,61386.0,0.092]
[1727937409727,0.09,61390.0,61386.0,0.091]
[1727937409923,0.0324686,61389.0,61386.0,0.092]
[1727937410118,0.09,61390.0,61386.0,0.092]
[1727937410423,0.03246851,61389.0,61386.0,0.092]
[1727937410621,0.09,61390.0,61386.0,0.092]
[1727937410622,0.03246851,61388.0,61386.0,0.092]
[1727937410821,0.09,61390.0,61386.0,0.002]
[1727937411018,0.03245371,61389.0,61386.0,0.002]
[1727937411223,0.09,61387.0,61386.0,0.002]
[1727937411419,0.12245371,61387.0,61386.0,0.002]
[1727937412422,0.12245371,61387.0,61386.0,0.001]
[1727937412729,0.12245371,61387.0,61386.0,0.002]
[1727937412916,0.03245371,61387.0,61386.0,0.002]
[1727937414425,0.07234775,61387.0,61386.0,0.002]
[1727937415234,0.03245371,61387.0,61386.0,0.002]
[1727937415423,0.07234724,61388.0,61386.0,0.002]
[1727937415651,0.07234724,61387.0,61386.0,0.002]
[1727937415821,0.07234724,61388.0,61386.0,0.002]
[1727937416042,0.07234724,61387.0,61386.0,0.002]
[1727937416537,0.07234724,61387.0,61386.0,0.001]
[1727937416833,0.07234724,61387.0,61386.0,0.002]
[1727937417227,0.03245371,61387.0,61386.0,0.002]
[1727937417431,0.07234724,61387.0,61386.0,0.002]
[1727937417625,0.07234724,61388.0,61386.0,0.002]
[1727937417829,0.07234724,61387.0,61386.0,0.002]
[1727937418125,0.03989353,61387.0,61386.0,0.002]
[1727937418536,0.07234724,61387.0,61386.0,0.002]
[1727937418825,0.07234724,61387.0,61380.0,0.0038]
[1727937418826,0.03251009,61387.0,61380.0,0.0038]
[1727937419022,0.03251009,61387.0,61377.0,0.3608]
[1727937419023,0.09,61381.0,61377.0,0.3646]
[1727937419225,0.09,61378.0,61377.0,0.3608]
[1727937420339,0.09,61378.0,61377.0,0.3618]
[1727937421738,0.09,61378.0,61377.0,0.3628]
[1727937421739,0.091,61378.0,61377.0,0.3628]
[1727937423637,0.091,61378.0,61377.0,0.002]
[1727937423939,0.091,61378.0,61377.0,0.3628]
[1727937428344,0.091,61378.0,61377.0,0.002]
[1727937429140,0.12365848,61378.0,61377.0,0.002]
[1727937429347,0.57976,61378.0,61377.0,0.002]
[1727937429531,0.61238553,61378.0,61377.0,0.002]
[1727937429943,0.12362553,61378.0,61377.0,0.002]
[1727937430141,0.03362553,61378.0,61377.0,0.002]
[1727937430337,0.12362553,61378.0,61377.0,0.002]
[1727937430941,0.091,61378.0,61377.0,0.002]
[1727937433545,0.131,61378.0,61377.0,0.002]
[1727937434248,0.16353409,61378.0,61377.0,0.002]
[1727937434842,0.52433409,61378.0,61377.0,0.002]
[1727937435444,0.065178,61373.0,61372.0,0.0038]
[1727937435744,0.065182,61369.0,61368.0,0.0038]
[1727937435941,0.22771609,61369.0,61361.0,0.3646]
[1727937436148,0.13,61364.0,61361.0,0.3608]
[1727937438151,0.131,61364.0,61361.0,0.3608]
[1727937440051,0.131,61364.0,61361.0,0.42599]
[1727937440255,0.001,61364.0,61361.0,0.42599]
[1727937441456,0.131,61364.0,61361.0,0.3608]
[1727937442349,0.097889,61363.0,61361.0,0.3608]
[1727937443459,0.098889,61363.0,61361.0,0.3608]
[1727937444363,0.100889,61363.0,61361.0,0.3608]
[1727937445060,0.100889,61363.0,61359.0,0.00244457]
[1727937445355,0.13,61360.0,61359.0,0.00244457]
[1727937446043,0.4908,61360.0,61359.0,0.00244457]
[1727937446562,0.4908,61360.0,61359.0,0.00344457]
[1727937447058,1.57972,61360.0,61359.0,0.00344457]
[1727937447855,0.97972,61360.0,61359.0,0.00344457]
[1727937449761,0.61892,61360.0,61359.0,0.00344457]
[1727937449957,0.97972,61360.0,61359.0,0.00344457]
[1727937450886,0.97972,61360.0,61348.0,0.369]
[1727937450887,0.4908,61360.0,61348.0,0.369]
[1727937451163,0.4908,61360.0,61348.0,0.3608]
[1727937451164,0.13,61349.0,61348.0,0.3608]
[1727937452353,0.13,61349.0,61348.0,0.3638]
[1727937452853,0.13,61349.0,61348.0,0.3658]
[1727937453561,0.13,61349.0,61348.0,0.3638]
[1727937453764,0.13,61349.0,61348.0,0.3658]
[1727937454960,0.15149093,61349.0,61348.0,0.3658]
[1727937455161,0.15149093,61349.0,61348.0,0.005]
[1727937463667,0.15149093,61349.0,61335.0,0.00244545]
[1727937463668,1.27198307,61349.0,61335.0,0.00244545]
[1727937463867,0.13,61337.0,61335.0,0.00244545]
[1727937465556,0.13,61337.0,61335.0,0.01644545]
[1727937465770,0.13,61340.0,61335.0,0.44246345]
[1727937465963,0.13,61340.0,61336.0,0.014]
[1727937466667,0.13,61337.0,61336.0,0.014]
[1727937466873,0.13,61337.0,61335.0,0.39124545]
[1727937468070,0.0038,61345.0,61336.0,0.48912]
[1727937468263,0.0038,61345.0,61335.0,0.99124545]
[1727937468264,0.0215495,61346.0,61341.0,0.195212]
[1727937468467,0.0215495,61346.0,61342.0,0.0925]
[1727937468969,0.13,61349.0,61342.0,0.0925]
[1727937470372,0.13,61349.0,61342.0,0.1005]
[1727937471676,0.13,61349.0,61342.0,0.1075]
[1727937475268,0.03164764,61348.0,61342.0,0.1075]
[1727937475470,0.13,61349.0,61342.0,0.1075]
[1727937475666,0.03165408,61348.0,61342.0,0.1075]
[1727937475870,0.13,61349.0,61342.0,0.1075]
[1727937476067,0.03165418,61348.0,61342.0,0.1075]
[1727937476270,0.03166272,61347.0,61342.0,0.1075]
[1727937476578,0.13,61349.0,61342.0,0.1075]
[1727937476767,0.03165366,61348.0,61342.0,0.1075]
[1727937476969,0.03165366,61347.0,61342.0,0.1075]
[1727937477169,0.13,61349.0,61342.0,0.1075]
[1727937477479,0.031653,61348.0,61342.0,0.1075]
[1727937477665,0.031653,61347.0,61342.0,0.1075]
[1727937477865,0.13,61349.0,61342.0,0.1075]
[1727937478070,0.03165447,61348.0,61342.0,0.1075]
[1727937478365,0.13,61349.0,61342.0,0.1075]
[1727937478366,0.03165447,61347.0,61342.0,0.1075]
[1727937478572,0.13,61349.0,61342.0,0.1075]
[1727937478573,0.03165447,61346.0,61342.0,0.1075]
[1727937478771,0.13,61349.0,61342.0,0.1005]
[1727937478974,0.03166802,61348.0,61342.0,0.1075]
[1727937479177,0.03166802,61347.0,61342.0,0.1075]
[1727937479470,0.13,61349.0,61342.0,0.1075]
[1727937479874,0.13,61349.0,61342.0,0.1025]
[1727937480078,0.13,61349.0,61342.0,0.0985]
[1727937481168,0.065202,61351.0,61342.0,0.0985]
[1727937481169,0.13,61345.0,61342.0,0.0985]
[1727937481996,0.13,61345.0,61342.0,0.1005]
[1727937482272,0.13,61345.0,61342.0,0.009]
[1727937482975,0.13,61345.0,61342.0,0.001]
[1727937483576,0.133,61345.0,61340.0,0.02098325]
[1727937483762,0.133,61345.0,61338.0,0.065215]
[1727937484778,0.065216,61337.0,61336.0,0.04862012]
[1727937484972,0.195216,61337.0,61336.0,0.04862012]
[1727937486067,0.195216,61337.0,61336.0,0.003]
[1727937486670,0.195216,61337.0,61336.0,0.005]
[1727937487068,0.195216,61337.0,61336.0,0.003]
[1727937487400,0.197216,61337.0,61336.0,0.003]
[1727937487769,0.199216,61337.0,61336.0,0.003]
[1727937488171,0.200216,61337.0,61335.0,0.36324545]
[1727937489269,0.135,61337.0,61335.0,0.36324545]
[1727937489583,0.136,61337.0,61335.0,0.36324545]
[1727937489784,0.135,61337.0,61335.0,0.36324545]
[1727937489984,0.138,61337.0,61335.0,0.36324545]
[1727937490575,0.134,61337.0,61335.0,0.36324545]
[1727937490877,0.137,61337.0,61335.0,0.36324545]
[1727937491081,0.137,61337.0,61335.0,0.00244545]
[1727937491277,0.0317239,61336.0,61335.0,0.00244545]
[1727937492181,0.0317239,61336.0,61333.0,0.42366]
[1727937492379,0.003,61336.0,61333.0,0.4227]
[1727937492683,0.007,61336.0,61333.0,0.4227]
[1727937493277,0.004,61336.0,61333.0,0.0619]
[1727937493678,0.004,61336.0,61333.0,0.4227]
[1727937493879,0.005,61336.0,61333.0,0.4227]
[1727937494286,0.002,61336.0,61333.0,0.0619]
[1727937494583,0.002,61336.0,61333.0,0.4227]
[1727937494776,0.002,61336.0,61333.0,1.01142]
[1727937494975,0.0038,61344.0,61339.0,0.065213]
[1727937495176,0.0038,61344.0,61335.0,0.3608]
[1727937495177,0.0994,61349.0,61338.0,0.13]
[1727937495386,0.0994,61349.0,61339.0,0.04859578]
[1727937496190,0.01,61344.0,61341.0,0.065211]
[1727937497088,0.005,61344.0,61341.0,0.065211]
[1727937498289,0.13,61346.0,61341.0,0.065211]
[1727937498887,0.13,61346.0,61341.0,0.066211]
[1727937499083,0.002,61344.0,61341.0,0.066211]
[1727937499389,0.002,61344.0,61341.0,0.065211]
[1727937500276,0.002,61344.0,61342.0,0.06521]
[1727937500587,0.003,61344.0,61342.0,0.06521]
[1727937500793,0.003,61344.0,61343.0,0.52024]
[1727937501187,0.003,61344.0,61343.0,1.12024]
[1727937502186,0.002,61344.0,61343.0,1.18545]
[1727937502792,0.0038,61352.0,61343.0,1.12024]
[1727937502983,0.0038,61352.0,61343.0,0.09641]
[1727937502984,0.001,61344.0,61343.0,0.09641]
[1727937503391,0.001,61344.0,61343.0,1.18545]
[1727937503590,0.001,61344.0,61343.0,0.94625]
[1727937503791,0.001,61344.0,61343.0,1.54625]
[1727937504989,0.0048,61352.0,61345.0,0.065207]
[1727937505193,0.001,61352.0,61346.0,0.065206]
[1727937505590,0.195199,61354.0,61346.0,0.065206]
[1727937506189,0.003,61352.0,61346.0,0.065206]
[1727937507410,0.002,61352.0,61346.0,0.065206]
[1727937507798,0.002,61352.0,61348.0,0.3608]
[1727937508194,0.003,61352.0,61348.0,0.3608]
[1727937508798,0.006,61352.0,61348.0,0.4908]
[1727937508999,0.008,61352.0,61349.0,0.065203]
[1727937509186,0.008,61352.0,61350.0,0.065202]
[1727937509388,0.008,61352.0,61351.0,0.13]
[1727937509699,0.008,61352.0,61351.0,0.1617]
[1727937509897,0.005,61352.0,61351.0,0.1617]
[1727937510201,0.008,61352.0,61351.0,0.1617]
[1727937510502,0.003,61352.0,61351.0,0.1617]
[1727937510694,0.008,61352.0,61351.0,0.1617]
[1727937511096,0.008,61352.0,61351.0,0.0317]
[1727937511296,0.008,61352.0,61350.0,0.066202]
[1727937511502,0.008,61352.0,61351.0,0.001]
[1727937511797,0.008,61352.0,61351.0,0.002]
[1727937513596,0.008,61352.0,61351.0,0.001]
[1727937514395,0.008,61352.0,61351.0,0.002]
[1727937515302,0.00796,61352.0,61351.0,0.002]
[1727937516402,0.00796,61352.0,61351.0,0.132]
[1727937516601,0.0038,61359.0,61358.0,0.065194]